bitfinex/quotes_ETHUSD_20250505
["timestamp","ask_amount","ask_price","bid_price","bid_amount"]
[1746426832242,5.4837199,1823.6,1823.4,0.59425244]
[1746426832563,6.27428375,1823.7,1823.3,0.4581]
[1746426832734,6.27428375,1823.7,1823.3,5.94254864]
[1746426836122,6.27428375,1823.7,1823.3,20.44254864]
[1746426838550,0.7908,1823.7,1823.3,14.9581]
[1746426838850,12.59902494,1823.8,1823.4,5.4842314]
[1746426839050,12.59902494,1823.8,1823.5,0.54842314]
[1746426839525,7.11569863,1823.8,1823.3,25.92682778]
[1746426839849,12.59901099,1823.8,1823.3,20.44246389]
[1746426840056,7.11569863,1823.8,1823.3,25.92678864]
[1746426840349,12.59904013,1823.8,1823.3,20.44242475]
[1746426840651,10.96702343,1823.7,1823.3,20.44242475]
[1746426840826,10.96703977,1823.7,1823.4,2.04424247]
[1746426841148,5.48339792,1823.7,1823.4,2.04424247]
[1746426843019,7.115708,1823.8,1823.4,2.04424247]
[1746426843251,7.115708,1823.8,1823.4,7.52848567]
[1746426843557,7.115708,1823.8,1823.4,7.5833218]
[1746426843756,7.115708,1823.8,1823.5,0.75833218]
[1746426845022,12.59904476,1823.8,1823.5,0.75833218]
[1746426845221,7.115708,1823.8,1823.5,0.75833218]
[1746426845854,7.115708,1823.8,1823.5,6.24227839]
[1746426846057,14.01154705,1823.9,1823.5,6.24227839]
[1746426846252,13.06192184,1824.2,1823.6,6.107716]
[1746426846253,6.954,1824.2,1823.6,6.107716]
[1746426846437,5.4820463,1824.2,1823.8,5.48290377]
[1746426847173,5.04104667,1824.3,1823.7,19.98316131]
[1746426847544,2.04104667,1824.3,1823.7,19.98316131]
[1746426847747,5.48205725,1824.2,1823.8,1.99831613]
[1746426847947,5.48205725,1824.2,1823.8,7.48137155]
[1746426848477,5.48215937,1824.1,1823.8,1.99831613]
[1746426849043,5.48202449,1824.2,1823.8,1.99831613]
[1746426849978,5.48202449,1824.2,1823.7,5.48318042]
[1746426850184,5.48221685,1824.1,1823.8,14.5]
[1746426850366,5.48245614,1824.0,1823.8,14.5]
[1746426850677,5.48290075,1823.9,1823.6,5.20222784]
[1746426851048,5.48290075,1823.9,1823.7,14.5]
[1746426851378,5.48245614,1824.0,1823.8,1.45]
[1746426851568,2.38287667,1824.1,1823.8,1.45]
[1746426851767,5.48266683,1824.0,1823.6,10.68587959]
[1746426851945,5.48266683,1824.0,1823.6,25.18587959]
[1746426852898,5.48280742,1823.9,1823.6,19.70222784]
[1746426853052,5.48263919,1824.0,1823.6,19.70222784]
[1746426853253,5.48263919,1824.0,1823.6,25.18587483]
[1746426853452,5.48263919,1824.0,1823.7,2.51858748]
[1746426854177,5.48301458,1823.9,1823.7,2.51858748]
[1746426854380,5.48305735,1823.8,1823.7,2.51858748]
[1746426854555,5.48290158,1823.9,1823.7,2.51858748]
[1746426854763,10.96590239,1823.9,1823.7,2.51858748]
[1746426854968,5.483358,1823.7,1823.6,4.578]
[1746426859118,5.48426017,1823.4,1823.3,4.577]
[1746426859275,5.4841401,1823.5,1823.3,4.577]
[1746426863720,5.48384521,1823.6,1823.3,4.577]
[1746426863924,5.48384521,1823.6,1823.3,5.0347]
[1746426865314,5.48384521,1823.6,1823.3,4.577]
[1746426869023,5.48402061,1823.5,1823.3,4.577]
[1746426869920,5.48383985,1823.6,1823.3,4.577]
[1746426871729,5.48361686,1823.7,1823.3,4.577]
[1746426871932,5.48361686,1823.7,1823.3,10.06139185]
[1746426872232,5.48361686,1823.7,1823.4,1.00613918]
[1746426873346,10.96724342,1823.7,1823.4,1.00613918]
[1746426873631,10.96724342,1823.7,1823.3,10.06139185]
[1746426873833,5.48368312,1823.6,1823.3,4.577]
[1746426874031,10.96762241,1823.6,1823.3,4.577]
[1746426874202,5.48399802,1823.5,1823.3,4.577]
[1746426874534,5.4838505,1823.6,1823.3,4.577]
[1746426874734,5.48348624,1823.7,1823.3,11.07320342]
[1746426879337,5.48348624,1823.7,1823.3,16.55752558]
[1746426879551,6.14,1823.8,1823.4,5.53899178]
[1746426879712,11.6225845,1824.0,1823.6,5.48360314]
[1746426880115,11.6225845,1824.0,1823.6,5.53843261]
[1746426880316,11.6225845,1824.0,1823.6,6.64067181]
[1746426881035,11.6225845,1824.0,1823.6,6.58584234]
[1746426882204,11.6225845,1824.0,1823.7,14.5]
[1746426882817,5.4827892,1823.9,1823.7,14.5]
[1746426883219,11.6226298,1824.0,1823.7,14.5]
[1746426883742,17.10535971,1824.0,1823.6,1.1022392]
[1746426883924,11.6226298,1824.0,1823.6,5.4836466]
[1746426884238,11.6226298,1824.0,1823.6,19.9836466]
[1746426884540,5.4826298,1824.0,1823.6,19.9836466]
[1746426885909,5.48278221,1823.9,1823.6,14.5]
[1746426887733,5.48259051,1824.0,1823.6,19.98364619]
[1746426888043,5.48259051,1824.0,1823.7,6.57436462]
[1746426888626,10.96529471,1824.0,1823.7,19.076]
[1746426888841,5.48259051,1824.0,1823.7,19.076]
[1746426890744,5.48259051,1824.0,1823.7,4.576]
[1746426891547,6.30533895,1824.1,1823.7,4.576]
[1746426891717,6.30533895,1824.1,1823.7,10.05924527]
[1746426891915,6.30533895,1824.1,1823.7,13.06352512]
[1746426892243,11.7877874,1824.1,1823.7,13.06352512]
[1746426892748,6.30533895,1824.1,1823.7,13.06352512]
[1746426894615,11.78775333,1824.1,1823.7,13.06352512]
[1746426894820,11.78775333,1824.1,1823.7,10.05924527]
[1746426895151,11.78775333,1824.1,1823.7,24.55924527]
[1746426895615,6.30533895,1824.1,1823.7,24.55924527]
[1746426896029,5.48233895,1824.1,1823.7,24.55924527]
[1746426897355,5.48256409,1824.0,1823.7,19.076]
[1746426897653,5.48256409,1824.0,1823.7,21.53195715]
[1746426898849,5.48256409,1824.0,1823.7,7.03195715]
[1746426899030,5.48256409,1824.0,1823.7,4.576]
[1746426903767,6.26443895,1824.1,1823.7,10.05932583]
[1746426903768,5.48233895,1824.1,1823.7,10.05932583]
[1746426904067,5.48233895,1824.1,1823.7,24.61415308]
[1746426904244,5.48233895,1824.1,1823.7,24.55932583]
[1746426904448,0.28723154,1824.0,1823.7,24.55932583]
[1746426904766,0.28723154,1824.0,1823.8,2.45593258]
[1746426905861,0.28723154,1824.0,1823.8,7.99370737]
[1746426906372,0.28723154,1824.0,1823.8,7.99364961]
[1746426907245,0.28723154,1824.0,1823.8,7.93882236]
[1746426907446,0.28723154,1824.0,1823.8,13.47648426]
[1746426907646,0.28723154,1824.0,1823.9,1.34764843]
[1746426908989,0.28723154,1824.0,1823.9,6.83040516]
[1746426910285,0.28723154,1824.0,1823.9,1.34764843]
[1746426914702,5.48292515,1823.9,1823.7,4.576]
[1746426914915,0.8234,1823.9,1823.7,4.576]
[1746426916111,6.30615938,1823.9,1823.7,4.576]
[1746426916285,0.8234,1823.9,1823.7,4.576]
[1746426917507,5.48305735,1823.8,1823.7,4.576]
[1746426917687,0.797,1823.7,1823.4,4.573]
[1746426917891,6.28052237,1823.7,1823.4,4.573]
[1746426918210,5.48370794,1823.6,1823.4,4.573]
[1746426918545,6.28053268,1823.7,1823.4,4.573]
[1746426919104,5.48372295,1823.6,1823.4,4.573]
[1746426919810,5.77096567,1823.6,1823.4,4.573]
[1746426920409,7.40344234,1823.6,1823.4,4.573]
[1746426921212,0.28724272,1823.6,1823.4,6.4803]
[1746426921513,0.28724272,1823.6,1823.4,12.0192818]
[1746426921806,0.28724272,1823.6,1823.4,11.96444724]
[1746426922330,0.28724272,1823.6,1823.5,5.48395941]
[1746426924865,0.28724272,1823.6,1823.5,19.98395941]
[1746426925036,0.28724272,1823.6,1823.5,23.17880008]
[1746426926569,0.7938,1824.2,1823.9,5.48264327]
[1746426926954,0.28715847,1824.0,1823.9,5.48264327]
[1746426930355,0.40857,1824.3,1824.2,5.48185505]
[1746426930669,0.40857,1824.3,1824.2,10.05485505]
[1746426930964,0.40857,1824.3,1824.2,11.60854529]
[1746426931967,0.40857,1824.3,1824.2,26.10854529]
[1746426933445,0.40857,1824.3,1824.2,27.74102196]
[1746426936572,0.28707916,1824.5,1824.4,5.48125411]
[1746426936779,0.7862,1825.2,1824.6,5.48065329]
[1746426936982,0.7862,1825.2,1824.9,5.47960109]
[1746426937180,0.28706181,1825.1,1825.0,5.47942867]
[1746426937912,0.28706181,1825.1,1825.0,5.53421924]
[1746426938508,0.28706181,1825.1,1825.0,5.47942867]
[1746426938709,0.28706181,1825.1,1825.0,6.73857931]
[1746426938917,0.28706181,1825.1,1825.0,6.79336502]
[1746426939212,0.28706181,1825.1,1825.0,6.73857931]
[1746426939704,0.28706181,1825.1,1824.9,10.95922259]
[1746426939887,0.28706181,1825.1,1825.0,5.47945205]
[1746426940091,0.28706181,1825.1,1824.9,10.95916421]
[1746426940415,0.28706181,1825.1,1825.0,14.5]
[1746426940589,0.28706181,1825.1,1825.0,19.97945205]
[1746426946227,0.28706181,1825.1,1825.0,22.52537131]
[1746426947881,0.28706181,1825.1,1825.0,22.932574]
[1746426948084,0.01335573,1825.4,1825.3,5.47855147]
[1746426948483,0.30035915,1825.4,1825.3,5.47855147]
[1746426949011,0.30035915,1825.4,1825.3,19.97855147]
[1746426949221,0.30035915,1825.4,1825.3,21.5310806]
[1746426949822,0.01335573,1825.4,1825.3,23.16355727]
[1746426951283,0.01335573,1825.4,1825.3,23.71355727]
[1746426951478,1.16757,1826.1,1826.0,5.47645125]
[1746426951731,1.16757,1826.1,1826.0,6.57176087]
[1746426952824,0.40857,1826.1,1826.0,6.57176087]
[1746426953020,0.40857,1826.1,1826.0,6.62652177]
[1746426953321,0.40857,1826.1,1826.0,6.57176087]
[1746426956150,0.40857,1826.1,1826.0,21.07176087]
[1746426958428,0.40857,1826.1,1826.0,24.07176087]
[1746426959214,1e-08,1826.1,1826.0,24.07176087]
[1746426959416,1e-08,1826.1,1826.0,30.77176087]
[1746426959616,1e-08,1826.1,1826.0,21.07176087]
[1746426960800,1e-08,1826.1,1825.9,5.47673159]
[1746426961037,1e-08,1826.1,1825.9,5.47675119]
[1746426961232,1e-08,1826.1,1825.9,5.47651614]
[1746426961436,1e-08,1826.1,1825.8,19.066]
[1746426961602,0.813,1826.0,1825.8,4.566]
[1746426961941,0.813,1825.9,1825.8,4.566]
[1746426962451,0.813,1825.9,1825.6,14.5]
[1746426962630,0.2340351,1825.9,1825.7,5.47720076]
[1746426963133,0.2340351,1825.9,1825.6,21.97525557]
[1746426964015,0.2340351,1825.9,1825.6,27.45267696]
[1746426964220,0.2340351,1825.9,1825.7,5.47731934]
[1746426964863,0.2340351,1825.9,1825.6,21.97530022]
[1746426965231,0.2340351,1825.9,1825.6,27.45269549]
[1746426965432,0.2340351,1825.9,1825.6,21.97517452]
[1746426966158,0.2340351,1825.9,1825.6,16.49777925]
[1746426966458,0.2340351,1825.9,1825.6,14.5]
[1746426966956,0.2340351,1825.9,1825.5,10.0428536]
[1746426967739,5.71093859,1825.9,1825.5,10.0428536]
[1746426969058,5.71093859,1825.9,1825.5,4.565]
[1746426969263,5.71093859,1825.9,1825.5,10.04292606]
[1746426969662,7.10970696,1825.8,1825.5,4.565]
[1746426969866,0.7754,1825.7,1825.5,4.565]
[1746426970866,5.47765118,1825.6,1825.5,4.565]
[1746426971048,7.88552785,1825.6,1825.3,18.136]
[1746426971248,13.36343431,1825.6,1825.3,18.136]
[1746426971449,7.88552785,1825.6,1825.3,18.136]
[1746426971948,2.40787667,1825.6,1825.3,18.136]
[1746426972155,5.47809836,1825.5,1825.3,18.136]
[1746426973978,5.47809836,1825.5,1825.2,4.588]
[1746426974580,7.88567765,1825.6,1825.2,4.588]
[1746426974762,5.4779704,1825.5,1825.2,4.588]
[1746426974982,0.7982,1825.3,1825.2,4.588]
[1746426977288,0.28702941,1825.4,1825.3,5.47855147]
[1746426980088,0.28702941,1825.4,1825.2,10.06682368]
[1746426980864,0.28702941,1825.4,1825.2,4.588]
[1746426981064,0.28702941,1825.4,1825.2,10.06684272]
[1746426982013,0.28702941,1825.4,1825.2,4.588]
[1746426982163,0.28702941,1825.4,1825.2,10.06684186]
[1746426982573,0.28702941,1825.4,1825.2,4.588]
[1746426982775,7.87442814,1825.3,1825.2,4.588]
[1746426983209,5.47939853,1825.1,1824.9,4.588]
[1746426983410,2.39587667,1825.0,1824.7,10.06824485]
[1746426984098,7.87542336,1825.0,1824.7,4.588]
[1746426984302,2.39587667,1825.0,1824.7,4.588]
[1746426985107,2.39587667,1825.0,1824.7,5.5948414]
[1746426986809,7.87541718,1825.0,1824.7,5.5948414]
[1746426988010,7.87541718,1825.0,1824.7,4.588]
[1746426988174,5.47979265,1824.9,1824.7,4.588]
[1746426988380,7.92442927,1824.8,1824.7,4.588]
[1746426988575,7.92442927,1824.8,1824.5,18.129]
[1746426990212,0.28708742,1824.7,1824.5,18.129]
[1746426990378,0.28708742,1824.7,1824.5,20.9489205]
[1746426990577,0.28708742,1824.7,1824.5,2.8199205]
[1746426990773,0.28708742,1824.7,1824.4,10.07020495]
[1746426996389,5.76753348,1824.7,1824.4,4.589]
[1746426996922,0.28708742,1824.7,1824.6,8.0]
[1746426997655,0.7641,1825.3,1824.7,5.48028903]
[1746426997805,0.7641,1825.5,1825.1,5.47898336]
[1746426998005,0.28705752,1825.2,1825.1,5.47898336]
[1746426998206,6.24205664,1825.5,1825.1,5.47898336]
[1746426998510,0.28703241,1825.2,1825.1,5.47898336]
[1746426998713,6.14,1826.0,1825.1,1.67483323]
[1746426999037,0.28699166,1825.8,1825.5,5.47792667]
[1746426999230,0.28699166,1825.8,1825.7,6.05635115]
[1746426999437,1.63247667,1826.3,1825.9,5.47653697]
[1746426999651,1.63247667,1826.3,1826.0,5.47639101]
[1746427000011,0.28695149,1826.2,1825.9,5.4765923]
[1746427000849,0.28695149,1826.2,1826.1,8.0]
[1746427002013,0.28695149,1826.2,1826.1,13.47615136]
[1746427002217,0.28695149,1826.2,1826.1,15.37139086]
[1746427003649,0.28695149,1826.2,1826.1,9.8952395]
[1746427004651,0.28695149,1826.2,1826.1,8.0]
[1746427008453,6.58780298,1826.2,1826.1,8.0]
[1746427008764,5.47650975,1826.0,1825.8,8.0]
[1746427009053,9.3040844,1825.9,1825.8,8.0]
[1746427009350,15.4440844,1825.9,1825.8,8.0]
[1746427009521,20.53614382,1825.9,1825.8,8.0]
[1746427009725,5.47764231,1825.7,1825.4,8.0]
[1746427010060,8.47997552,1825.7,1825.4,8.0]
[1746427010555,0.8215,1825.5,1825.4,8.0]
[1746427010755,6.29945124,1825.5,1825.4,8.0]
[1746427011064,0.8215,1825.5,1825.4,8.0]
[1746427014086,6.29945124,1825.5,1825.4,8.0]
[1746427014456,7.47717307,1825.5,1825.4,8.0]
[1746427014661,5.47825134,1825.4,1825.3,4.595]
[1746427014855,5.47825134,1825.4,1825.2,8.0]
[1746427015254,5.76526604,1825.4,1825.2,8.0]
[1746427015675,5.76526604,1825.4,1825.1,8.0]
[1746427016675,5.76526604,1825.4,1825.2,8.0]
[1746427017260,0.2870147,1825.4,1825.2,8.0]
[1746427018593,5.76542072,1825.4,1825.2,8.0]
[1746427020090,0.2870147,1825.4,1825.2,8.0]
[1746427021775,0.2870147,1825.4,1825.2,13.47885131]
[1746427022065,0.2870147,1825.4,1825.3,5.47855147]
[1746427023818,0.2870147,1825.4,1825.3,13.47855147]
[1746427024582,0.2870147,1825.4,1825.3,8.0]
[1746427030529,5.76526604,1825.4,1825.3,8.0]
[1746427031025,0.2870147,1825.4,1825.3,8.0]
[1746427031946,8.18144036,1825.4,1825.3,8.0]
[1746427032146,9.54739321,1825.4,1825.3,8.0]
[1746427032947,5.47855147,1825.3,1825.2,8.0]
[1746427033734,8.1816384,1825.4,1825.2,8.0]
[1746427034235,5.47855147,1825.3,1825.2,8.0]
[1746427035741,5.47855147,1825.3,1825.1,8.0]
[1746427036818,5.47855147,1825.3,1825.0,27.095]
[1746427037143,5.47855147,1825.3,1825.0,12.595]
[1746427037535,0.28703522,1825.2,1825.0,12.595]
[1746427037743,0.28703522,1825.2,1825.1,8.0]
[1746427040036,0.28703522,1825.2,1825.1,15.31765182]
[1746427043559,6.9317,1825.8,1825.5,5.47782775]
[1746427043761,0.7917,1825.8,1825.5,5.47782775]
[1746427043963,0.28697328,1825.7,1825.5,5.47782775]
[1746427044266,0.28697328,1825.7,1825.5,6.48431052]
[1746427044855,0.28697328,1825.7,1825.6,8.0]
[1746427046565,0.28697328,1825.7,1825.6,13.47765118]
[1746427046855,0.28697328,1825.7,1825.6,15.6795255]
[1746427047037,0.8034,1826.2,1825.8,5.47693054]
[1746427047238,0.8034,1826.2,1825.8,6.57235515]
[1746427047551,0.28696256,1826.0,1825.9,5.47675119]
[1746427047854,0.28696256,1826.0,1825.9,6.05575119]
[1746427049557,0.28696256,1826.0,1825.9,5.47675119]
[1746427049726,7.09845464,1826.3,1825.9,13.47675119]
[1746427049927,0.28695869,1826.2,1825.9,17.39036182]
[1746427050365,0.28695869,1826.2,1826.0,5.47637045]
[1746427050868,0.28695869,1826.2,1826.1,8.0]
[1746427051545,7.3856845,1826.2,1826.1,8.0]
[1746427051746,1.90983301,1826.2,1826.0,8.0]
[1746427051945,1.90983301,1826.2,1826.0,9.19136106]
[1746427052983,7.38568606,1826.2,1826.0,9.19136106]
[1746427053157,0.28695869,1826.2,1826.0,9.19136106]
[1746427053361,0.28695869,1826.2,1826.0,14.66770227]
[1746427053780,0.28695869,1826.2,1826.1,8.0]
[1746427054090,0.28695869,1826.2,1826.1,8.91913611]
[1746427055192,5.76281018,1826.2,1826.1,8.91913611]
[1746427055391,5.76281018,1826.2,1826.1,8.0]
[1746427055595,6.56051018,1826.2,1826.1,8.0]
[1746427055896,5.47667337,1826.0,1825.8,12.587]
[1746427056070,7.09954769,1826.0,1825.8,12.587]
[1746427056249,7.09954769,1826.0,1825.8,8.0]
[1746427056454,0.7795,1825.9,1825.8,8.0]
[1746427057705,0.7795,1825.9,1825.7,8.0]
[1746427058006,6.25639298,1825.9,1825.7,8.0]
[1746427059314,0.7795,1825.9,1825.7,8.0]
[1746427059685,5.47705115,1825.8,1825.6,8.0]
[1746427060315,6.25646296,1825.9,1825.6,8.0]
[1746427060515,5.47724786,1825.8,1825.6,8.0]
[1746427061015,5.47722366,1825.8,1825.6,8.0]
[1746427061820,10.95453098,1825.8,1825.6,8.0]
[1746427062489,5.47735115,1825.7,1825.6,8.0]
[1746427063809,5.47735115,1825.7,1825.5,8.0]
[1746427064205,5.47765118,1825.6,1825.5,8.0]
[1746427064924,5.47795124,1825.5,1825.4,8.0]
[1746427065705,5.47825134,1825.4,1825.3,12.584]
[1746427065901,5.47813881,1825.5,1825.3,12.584]
[1746427066426,5.47825134,1825.4,1825.3,12.584]
[1746427066626,5.47812985,1825.5,1825.3,12.584]
[1746427067223,10.95634396,1825.5,1825.3,12.584]
[1746427067731,5.47825134,1825.4,1825.3,12.584]
[1746427067900,5.47825134,1825.4,1825.3,8.0]
[1746427068847,5.47825134,1825.4,1825.2,8.0]
[1746427069146,6.23065147,1825.3,1825.2,8.0]
[1746427069735,6.23065147,1825.3,1825.1,8.0]
[1746427070136,5.47885163,1825.2,1825.1,8.0]
[1746427070437,7.10172595,1825.2,1825.1,8.0]
[1746427070798,5.47942895,1825.1,1824.9,8.0]
[1746427071735,5.47942895,1825.1,1825.0,8.0]
[1746427074149,6.24412895,1825.1,1825.0,8.0]
[1746427074440,7.57871974,1825.1,1825.0,8.0]
[1746427074836,13.05817023,1825.1,1824.8,26.128]
[1746427075268,5.47975231,1824.9,1824.8,8.0]
[1746427075755,5.47975231,1824.9,1824.7,4.584]
[1746427076252,5.48035293,1824.7,1824.6,8.0]
[1746427076834,5.48035293,1824.7,1824.5,8.0]
[1746427077458,7.86420512,1824.8,1824.5,8.0]
[1746427077966,6.2413308,1824.8,1824.5,8.0]
[1746427078740,0.7611,1824.8,1824.5,13.48078396]
[1746427078925,12.37563134,1824.9,1824.5,13.48078396]
[1746427079761,5.48019507,1824.8,1824.6,8.0]
[1746427079948,5.48035293,1824.7,1824.6,8.0]
[1746427080752,5.76743023,1824.7,1824.5,8.0]
[1746427080956,0.8115,1824.6,1824.5,8.0]
[1746427082049,0.2870773,1824.7,1824.5,8.0]
[1746427082856,5.76743023,1824.7,1824.6,8.0]
[1746427083038,6.58873023,1824.7,1824.6,8.0]
[1746427083750,12.06934097,1824.7,1824.4,12.585]
[1746427084056,5.48067557,1824.6,1824.4,12.585]
[1746427084471,5.48095368,1824.5,1824.4,8.0]
[1746427084658,8.31063165,1824.6,1824.4,8.0]
[1746427084826,1.20694058,1824.6,1824.3,8.0]
[1746427085029,6.58889147,1824.7,1824.3,13.48151966]
[1746427086052,6.58889147,1824.7,1824.3,14.06051966]
[1746427086768,6.58889147,1824.7,1824.4,8.0]
[1746427088057,12.06950921,1824.7,1824.4,8.0]
[1746427088253,6.58889147,1824.7,1824.4,8.0]
[1746427090590,5.48069214,1824.6,1824.4,8.0]
[1746427090739,5.48095368,1824.5,1824.4,8.0]
[1746427091751,11.76719548,1824.5,1824.2,8.0]
[1746427091959,5.48137309,1824.4,1824.2,8.0]
[1746427092347,7.10442888,1824.3,1824.2,8.0]
[1746427092660,5.48155456,1824.3,1824.2,8.0]
[1746427092868,5.48155456,1824.3,1824.1,4.586]
[1746427093074,5.48155456,1824.3,1824.0,8.0]
[1746427093846,0.7634,1824.2,1824.1,8.0]
[1746427094076,6.24525505,1824.2,1824.1,8.0]
[1746427094649,5.48222775,1824.1,1824.0,8.0]
[1746427094975,6.24525505,1824.2,1824.0,8.0]
[1746427094976,6.24544659,1824.2,1824.0,8.0]
[1746427095849,6.53259029,1824.2,1824.0,8.0]
[1746427096470,5.48215558,1824.1,1824.0,8.0]
[1746427096852,5.48245614,1824.0,1823.9,8.0]
[1746427097766,5.48275673,1823.9,1823.8,8.0]
[1746427098782,5.48275673,1823.9,1823.7,8.0]
[1746427099865,5.48264124,1824.0,1823.7,8.0]
[1746427100699,5.48264124,1824.0,1823.8,8.0]
[1746427101048,5.48234391,1824.1,1823.8,8.0]
[1746427101252,15.01468463,1824.2,1823.8,14.06205129]
[1746427101477,5.48217594,1824.1,1823.8,8.579]
[1746427101755,5.48217594,1824.1,1824.0,8.0]
[1746427102684,12.67255293,1824.2,1824.0,8.0]
[1746427102907,11.90915293,1824.2,1824.0,8.0]
[1746427103567,17.39125046,1824.2,1824.0,8.0]
[1746427103768,17.39125752,1824.2,1824.0,8.0]
[1746427104914,11.90915293,1824.2,1824.1,8.0]
[1746427105466,17.63222253,1824.2,1824.1,8.0]
[1746427105715,5.48269808,1824.0,1823.8,8.0]
[1746427105882,7.1055724,1824.0,1823.8,8.0]
[1746427106282,5.48231713,1824.1,1823.8,8.0]
[1746427106697,5.48231713,1824.1,1823.8,8.579]
[1746427106902,16.25510531,1824.2,1823.8,14.06198612]
[1746427107218,12.73086139,1824.2,1823.8,9.4062328]
[1746427107713,12.73086139,1824.2,1824.0,8.0]
[1746427107865,12.73086781,1824.2,1824.0,8.0]
[1746427108421,11.90916781,1824.2,1824.0,8.0]
[1746427108812,0.797,1824.1,1824.0,8.0]
[1746427110110,6.27915558,1824.1,1824.0,8.0]
[1746427110808,6.4271437,1824.2,1824.0,13.48233563]
[1746427111269,6.4271437,1824.2,1824.0,14.88846919]
[1746427111616,0.2871437,1824.2,1824.0,20.37069479]
[1746427111768,0.2871437,1824.2,1824.1,8.0]
[1746427113725,0.2871437,1824.2,1824.1,8.579]
[1746427113882,0.2871437,1824.2,1824.1,14.06115558]
[1746427114083,0.2871437,1824.2,1824.1,16.15610705]
[1746427114325,11.62078654,1824.6,1824.2,5.48175492]
[1746427114527,0.28711334,1824.5,1824.3,6.0604167]
[1746427115088,0.28711334,1824.5,1824.3,0.579]
[1746427115611,0.28711334,1824.5,1824.3,6.06051261]
[1746427115826,0.28711334,1824.5,1824.4,8.0]
[1746427118234,0.28711334,1824.5,1824.4,13.48125411]
[1746427118610,6.14,1824.8,1824.5,5.48077348]
[1746427118819,6.14,1824.8,1824.6,0.579]
[1746427119018,0.28707895,1824.7,1824.6,0.579]
[1746427119898,0.28707895,1824.7,1824.6,8.579]
[1746427120532,5.76743188,1824.7,1824.6,8.0]
[1746427120834,13.3413107,1824.7,1824.5,8.0]
[1746427121004,7.86068352,1824.7,1824.5,8.0]
[1746427121404,13.34130784,1824.7,1824.5,8.0]
[1746427121602,7.86068352,1824.7,1824.5,8.0]
[1746427121813,13.34129483,1824.7,1824.5,8.0]
[1746427122016,5.48065329,1824.6,1824.5,8.0]
[1746427122626,7.86087883,1824.7,1824.5,8.0]
[1746427124444,6.57382719,1824.7,1824.5,8.0]
[1746427124734,0.28707895,1824.7,1824.5,8.0]
[1746427124905,0.28707895,1824.7,1824.6,5.48065329]
[1746427126833,7.39047921,1824.7,1824.5,8.0]
[1746427127018,8.98928713,1824.7,1824.6,8.0]
[1746427127638,8.98928713,1824.7,1824.5,8.0]
[1746427128014,14.46989578,1824.7,1824.5,8.0]
[1746427128345,5.48065329,1824.6,1824.5,8.0]
[1746427129062,5.48095368,1824.5,1824.4,8.0]
[1746427129647,5.48095368,1824.5,1824.3,4.594]
[1746427129847,5.48095368,1824.5,1824.3,12.594]
[1746427131142,5.48083364,1824.6,1824.3,12.594]
[1746427131526,12.6891959,1824.7,1824.3,12.594]
[1746427132143,18.16984452,1824.7,1824.3,12.594]
[1746427132445,5.48072749,1824.6,1824.3,12.594]
[1746427132855,5.48096514,1824.5,1824.3,12.594]
[1746427133658,5.48096514,1824.5,1824.3,4.594]
[1746427133963,5.48096514,1824.5,1824.4,8.0]
[1746427135764,5.48096514,1824.5,1824.3,4.594]
[1746427135765,5.48096514,1824.5,1824.3,12.594]
[1746427138478,5.48076509,1824.6,1824.3,12.594]
[1746427138667,5.48076509,1824.6,1824.4,8.0]
[1746427142579,12.68922326,1824.7,1824.4,8.0]
[1746427142751,12.68922326,1824.7,1824.4,14.06025367]
[1746427142752,6.42707895,1824.7,1824.4,14.06025367]
[1746427143133,6.42707895,1824.7,1824.4,19.54131077]
[1746427143370,6.42707895,1824.7,1824.4,14.0600571]
[1746427143576,6.42707895,1824.7,1824.4,16.47360194]
[1746427143763,6.42707895,1824.7,1824.6,8.0]
[1746427145275,6.42707895,1824.7,1824.6,13.48065329]
[1746427145576,6.42707895,1824.7,1824.6,8.579]
[1746427148473,0.28707895,1824.7,1824.6,8.579]
[1746427148875,0.28707895,1824.7,1824.6,14.91755329]
[1746427149370,5.47920613,1825.1,1824.7,5.48022015]
[1746427149677,0.28704667,1825.0,1824.9,6.05875231]
[1746427151291,0.7753,1825.5,1824.9,6.05875231]
[1746427151491,5.47778553,1825.6,1825.1,5.47915182]
[1746427151791,0.28700161,1825.3,1825.1,10.07015182]
[1746427152086,8.47790814,1825.6,1825.2,1.00701518]
[1746427152263,0.28699816,1825.3,1825.1,4.591]
[1746427152592,5.47827287,1825.4,1825.1,4.591]
[1746427152756,0.28699767,1825.3,1825.1,4.591]
[1746427153682,8.21066984,1825.3,1825.2,8.0]
[1746427154687,8.21066984,1825.3,1825.0,8.0]
[1746427154857,5.47899678,1825.2,1825.0,8.0]
[1746427155388,10.95812994,1825.2,1825.0,8.0]
[1746427155687,5.76567926,1825.3,1825.0,8.0]
[1746427156257,11.24447908,1825.3,1825.0,8.0]
[1746427156593,5.76567926,1825.3,1825.0,8.0]
[1746427156787,5.76567926,1825.3,1825.2,8.0]
[1746427156788,0.28699767,1825.3,1825.2,8.0]
[1746427158095,5.76554914,1825.3,1825.2,8.0]
[1746427158597,6.88994676,1825.3,1825.2,8.0]
[1746427158783,12.36877525,1825.3,1825.1,8.0]
[1746427159103,5.47885163,1825.2,1825.1,8.0]
[1746427166824,6.89011653,1825.3,1825.1,8.0]
[1746427167527,12.36894329,1825.3,1825.1,8.0]
[1746427167701,11.24454567,1825.3,1825.1,8.0]
[1746427168104,5.47885163,1825.2,1825.1,8.0]
[1746427169604,5.76568194,1825.3,1825.1,8.0]
[1746427171232,0.8004,1825.2,1825.1,8.0]
[1746427171533,6.27925163,1825.2,1825.1,8.0]
[1746427171697,11.75837553,1825.2,1824.9,8.0]
[1746427172400,6.27925163,1825.2,1824.9,8.0]
[1746427177718,6.27925163,1825.2,1824.9,9.86448404]
[1746427177924,7.38861237,1825.3,1824.9,15.34421012]
[1746427179613,5.76556229,1825.3,1825.1,8.0]
[1746427180853,0.28699767,1825.3,1825.1,8.0]
[1746427185448,5.76555319,1825.3,1825.1,8.0]
[1746427188351,6.42242851,1825.3,1825.1,8.0]
[1746427188841,6.42242851,1825.3,1825.0,8.0]